[Event "Schack-SM 2022: Sverigemastarklassen"]
[Site "Fyrishov, Idrottsgatan 2, Uppsala, Sweden"]
[Date "2022.07.03"]
[Round "2.2"]
[White "Seo, Jung Min"]
[Black "Jogstad, Martin"]
[Result "1-0"]
[TimeControl "90 minutes for 40 moves + 30 minutes for the rest of the game + 30 seconds per move from move one."]
[WhiteTitle "IM"]
[BlackTitle "FM"]
[WhiteFideId "1734687"]
[BlackFideId "1715364"]
[WhiteElo "2492"]
[BlackElo "2384"]

1. d4 {[%clk 01:30:57]} {[%emt 00:00:03]} d5 {[%clk 01:30:32]} {[%emt
00:00:28]} 2. c4 {[%clk 01:31:24]} {[%emt 00:00:04]} e6 {[%clk 01:30:48]}
{[%emt 00:00:13]} 3. Nc3 {[%clk 01:31:52]} {[%emt 00:00:02]} Nf6 {[%clk
01:31:06]} {[%emt 00:00:12]} 4. cxd5 {[%clk 01:31:58]} {[%emt 00:00:25]} exd5
{[%clk 01:31:26]} {[%emt 00:00:10]} 5. Bg5 {[%clk 01:31:50]} {[%emt 00:00:37]}
c6 {[%clk 01:31:45]} {[%emt 00:00:11]} 6. e3 {[%clk 01:32:16]} {[%emt
00:00:04]} Be7 {[%clk 01:32:06]} {[%emt 00:00:09]} 7. Bd3 {[%clk 01:31:40]}
{[%emt 00:01:06]} O-O {[%clk 01:32:21]} {[%emt 00:00:15]} 8. Qc2 {[%clk
01:31:50]} {[%emt 00:00:20]} h6 {[%clk 01:32:28]} {[%emt 00:00:23]} 9. Bh4
{[%clk 01:31:56]} {[%emt 00:00:25]} Ne8 {[%clk 01:32:43]} {[%emt 00:00:14]} 10.
Bxe7 {[%clk 01:29:13]} {[%emt 00:03:14]} Qxe7 {[%clk 01:33:04]} {[%emt
00:00:08]} 11. Nge2 {[%clk 01:16:20]} {[%emt 00:13:23]} Nd6 {[%clk 01:32:54]}
{[%emt 00:00:41]} 12. O-O {[%clk 01:16:44]} {[%emt 00:00:05]} Bg4 {[%clk
01:32:04]} {[%emt 00:01:20]} 13. Ng3 {[%clk 01:15:29]} {[%emt 00:01:46]} Nd7
{[%clk 01:30:10]} {[%emt 00:02:24]} 14. Rae1 {[%clk 01:14:49]} {[%emt
00:01:10]} Be6 {[%clk 01:12:56]} {[%emt 00:17:43]} 15. f3 {[%clk 01:09:02]}
{[%emt 00:06:17]} f5 {[%clk 00:41:58]} {[%emt 00:31:28]} 16. Na4 {[%clk
00:53:59]} {[%emt 00:15:33]} Rae8 {[%clk 00:31:43]} {[%emt 00:10:45]} 17. Nc5
{[%clk 00:53:05]} {[%emt 00:01:25]} Kh8 {[%clk 00:25:54]} {[%emt 00:06:18]} 18.
b3 {[%clk 00:46:27]} {[%emt 00:07:08]} Qg5 {[%clk 00:23:40]} {[%emt 00:02:44]}
19. Qc1 {[%clk 00:40:01]} {[%emt 00:06:56]} Qe7 {[%clk 00:16:24]} {[%emt
00:07:43]} 20. Ne2 {[%clk 00:38:29]} {[%emt 00:02:05]} Bf7 {[%clk 00:15:51]}
{[%emt 00:01:02]} 21. Bb1 {[%clk 00:36:48]} {[%emt 00:02:12]} Nf6 {[%clk
00:12:33]} {[%emt 00:03:48]} 22. Ng3 {[%clk 00:33:16]} {[%emt 00:04:02]} Bg6
{[%clk 00:11:40]} {[%emt 00:01:23]} 23. Qd2 {[%clk 00:32:33]} {[%emt 00:01:13]}
Bh7 {[%clk 00:11:24]} {[%emt 00:00:46]} 24. Bc2 {[%clk 00:32:04]} {[%emt
00:00:59]} Nd7 {[%clk 00:09:59]} {[%emt 00:01:54]} 25. Nxd7 {[%clk 00:29:31]}
{[%emt 00:03:05]} Qxd7 {[%clk 00:10:24]} {[%emt 00:00:04]} 26. Ne2 {[%clk
00:29:55]} {[%emt 00:00:06]} Rf7 {[%clk 00:07:01]} {[%emt 00:03:53]} 27. Nf4
{[%clk 00:29:51]} {[%emt 00:00:35]} Rfe7 {[%clk 00:07:15]} {[%emt 00:00:15]} 28.
Nd3 {[%clk 00:30:13]} {[%emt 00:00:07]} Qe6 {[%clk 00:06:36]} {[%emt 00:01:09]}
29. f4 {[%clk 00:26:21]} {[%emt 00:04:23]} Ne4 {[%clk 00:05:46]} {[%emt
00:01:20]} 30. Qc1 {[%clk 00:26:48]} {[%emt 00:00:04]} Qd6 {[%clk 00:05:08]}
{[%emt 00:01:08]} 31. Ne5 {[%clk 00:27:12]} {[%emt 00:00:05]} Nf6 {[%clk
00:04:43]} {[%emt 00:00:55]} 32. Bd3 {[%clk 00:27:11]} {[%emt 00:00:31]} Rc7
{[%clk 00:02:43]} {[%emt 00:02:30]} 33. Qb1 {[%clk 00:27:26]} {[%emt 00:00:15]}
Qe6 {[%clk 00:02:29]} {[%emt 00:00:45]} 34. b4 {[%clk 00:26:55]} {[%emt
00:01:01]} Rec8 {[%clk 00:01:13]} {[%emt 00:01:46]} 35. a4 {[%clk 00:26:16]}
{[%emt 00:01:09]} Ne8 {[%clk 00:00:42]} {[%emt 00:01:01]} 36. Rc1 {[%clk
00:25:39]} {[%emt 00:01:06]} Nd6 {[%clk 00:01:10]} {[%emt 00:00:03]} 37. Qb3
{[%clk 00:25:01]} {[%emt 00:01:08]} Bg6 {[%clk 00:00:37]} {[%emt 00:01:02]} 38.
Rc3 {[%clk 00:25:00]} {[%emt 00:00:30]} Be8 {[%clk 00:00:37]} {[%emt 00:00:31]}
39. Rfc1 {[%clk 00:25:22]} {[%emt 00:00:09]} Qe7 {[%clk 00:00:37]} {[%emt
00:00:30]} 40. Qc2 {[%clk 00:25:37]} {[%emt 00:00:14]} g6 {[%clk 00:00:35]}
{[%emt 00:00:33]} 41. b5 {[%clk 00:24:57]} {[%emt 00:01:10]} Kg7 {[%clk
00:25:56]} {[%emt 00:05:07]} 42. a5 {[%clk 00:52:35]} {[%emt 00:02:54]} Nf7
{[%clk 00:12:16]} {[%emt 00:14:08]} 43. bxc6 {[%clk 00:40:52]} {[%emt
00:12:14]} bxc6 {[%clk 00:12:22]} {[%emt 00:00:24]} 44. Rc5 {[%clk 00:38:58]}
{[%emt 00:02:25]} Rb8 {[%clk 00:02:41]} {[%emt 00:10:10]} 45. Rxd5 {[%clk
00:36:11]} {[%emt 00:03:17]} Rcb7 {[%clk 00:03:10]} {[%emt 00:00:01]} 46. Rc5
{[%clk 00:36:33]} {[%emt 00:00:08]} Rb2 {[%clk 00:03:37]} {[%emt 00:00:03]} 47.
Qd1 {[%clk 00:36:51]} {[%emt 00:00:12]} Qh4 {[%clk 00:02:20]} {[%emt 00:01:46]}
48. R5c2 {[%clk 00:36:56]} {[%emt 00:00:26]} Nxe5 {[%clk 00:02:27]} {[%emt
00:00:23]} 49. dxe5 {[%clk 00:37:00]} {[%emt 00:00:26]} Bf7 {[%clk 00:01:59]}
{[%emt 00:00:58]} 50. Qe2 {[%clk 00:35:19]} {[%emt 00:02:11]} Rxc2 {[%clk
00:01:27]} {[%emt 00:01:03]} 51. Qxc2 {[%clk 00:35:43]} {[%emt 00:00:05]} Bd5
{[%clk 00:01:17]} {[%emt 00:00:40]} 52. g3 {[%clk 00:33:18]} {[%emt 00:02:55]}
Qe7 {[%clk 00:01:45]} {[%emt 00:00:02]} 53. e4 {[%clk 00:31:48]} {[%emt
00:02:00]} fxe4 {[%clk 00:02:10]} {[%emt 00:00:05]} 54. Bxe4 {[%clk 00:32:17]}
{[%emt 00:00:02]} Qb4 {[%clk 00:01:05]} {[%emt 00:01:34]} 55. Bxd5 {[%clk
00:32:40]} {[%emt 00:00:07]} Qd4+ {[%clk 00:00:34]} {[%emt 00:01:02]} 56. Qf2
{[%clk 00:33:03]} {[%emt 00:00:06]} Qxf2+ {[%clk 00:00:37]} {[%emt 00:00:28]}
57. Kxf2 {[%clk 00:33:31]} {[%emt 00:00:02]} Rb2+ {[%clk 00:00:54]} {[%emt
00:00:13]} 58. Ke3 {[%clk 00:33:56]} {[%emt 00:00:04]} cxd5 {[%clk 00:01:18]}
{[%emt 00:00:07]} 59. Rc7+ {[%clk 00:34:25]} {[%emt 00:00:01]} Kg8 {[%clk
00:01:09]} {[%emt 00:00:39]} 60. Rxa7 {[%clk 00:34:49]} {[%emt 00:00:06]} Rxh2
{[%clk 00:01:33]} {[%emt 00:00:05]} 61. a6 {[%clk 00:35:10]} {[%emt 00:00:09]}
Rg2 {[%clk 00:01:40]} {[%emt 00:00:23]} 62. Rb7 {[%clk 00:35:31]} {[%emt
00:00:08]} 1-0

[Event "Schack-SM 2022: Sverigemastarklassen"]
[Site "Fyrishov, Idrottsgatan 2, Uppsala, Sweden"]
[Date "2022.07.03"]
[Round "2.3"]
[White "Hector, Jonny"]
[Black "Blomqvist, Erik"]
[Result "1-0"]
[TimeControl "90 minutes for 40 moves + 30 minutes for the rest of the game + 30 seconds per move from move one."]
[WhiteTitle "GM"]
[BlackTitle "GM"]
[WhiteFideId "1700090"]
[BlackFideId "1709437"]
[WhiteElo "2441"]
[BlackElo "2521"]

1. e4 {[%clk 01:30:54]} {[%emt 00:00:04]} c5 {[%clk 01:30:53]} {[%emt
00:00:09]} 2. Nf3 {[%clk 01:31:17]} {[%emt 00:00:06]} e6 {[%clk 01:31:05]}
{[%emt 00:00:18]} 3. d4 {[%clk 01:31:34]} {[%emt 00:00:13]} cxd4 {[%clk
01:31:23]} {[%emt 00:00:13]} 4. Nxd4 {[%clk 01:31:56]} {[%emt 00:00:07]} Nf6
{[%clk 01:31:29]} {[%emt 00:00:24]} 5. Nc3 {[%clk 01:32:17]} {[%emt 00:00:08]}
Nc6 {[%clk 01:31:53]} {[%emt 00:00:06]} 6. Nxc6 {[%clk 01:31:23]} {[%emt
00:01:24]} bxc6 {[%clk 01:32:15]} {[%emt 00:00:09]} 7. e5 {[%clk 01:31:28]}
{[%emt 00:00:24]} Nd5 {[%clk 01:32:37]} {[%emt 00:00:08]} 8. Ne4 {[%clk
01:30:34]} {[%emt 00:01:23]} Qc7 {[%clk 01:32:37]} {[%emt 00:00:31]} 9. f4
{[%clk 01:30:38]} {[%emt 00:00:26]} Qb6 {[%clk 01:32:46]} {[%emt 00:00:22]} 10.
c4 {[%clk 01:28:42]} {[%emt 00:02:24]} Ne3 {[%clk 01:32:38]} {[%emt 00:00:39]}
11. Qd3 {[%clk 01:23:46]} {[%emt 00:05:25]} Bb4+ {[%clk 01:32:36]} {[%emt
00:00:34]} 12. Bd2 {[%clk 01:12:51]} {[%emt 00:11:24]} Ba6 {[%clk 01:31:51]}
{[%emt 00:01:15]} 13. b3 {[%clk 01:06:40]} {[%emt 00:06:41]} O-O {[%clk
01:31:06]} {[%emt 00:01:15]} 14. Bxb4 {[%clk 01:00:38]} {[%emt 00:06:32]} Qxb4+
{[%clk 01:31:10]} {[%emt 00:00:27]} 15. Kf2 {[%clk 00:57:05]} {[%emt 00:04:03]}
Nd5 {[%clk 01:30:28]} {[%emt 00:01:12]} 16. g3 {[%clk 00:48:01]} {[%emt
00:09:34]} f6 {[%clk 01:29:30]} {[%emt 00:01:28]} 17. exf6 {[%clk 00:40:20]}
{[%emt 00:08:11]} gxf6 {[%clk 01:29:23]} {[%emt 00:00:37]} 18. Kg2 {[%clk
00:32:57]} {[%emt 00:07:52]} f5 {[%clk 01:10:19]} {[%emt 00:19:34]} 19. Ng5
{[%clk 00:32:58]} {[%emt 00:00:29]} Rae8 {[%clk 01:01:28]} {[%emt 00:09:22]} 20.
Nf3 {[%clk 00:30:53]} {[%emt 00:02:35]} Re7 {[%clk 00:51:23]} {[%emt 00:10:34]}
21. Qd2 {[%clk 00:29:12]} {[%emt 00:02:10]} Qxd2+ {[%clk 00:51:09]} {[%emt
00:00:45]} 22. Nxd2 {[%clk 00:29:40]} {[%emt 00:00:02]} Ne3+ {[%clk 00:49:11]}
{[%emt 00:02:29]} 23. Kf3 {[%clk 00:29:15]} {[%emt 00:00:54]} Nc2 {[%clk
00:48:47]} {[%emt 00:00:54]} 24. Rc1 {[%clk 00:29:21]} {[%emt 00:00:24]} Nd4+
{[%clk 00:45:25]} {[%emt 00:03:52]} 25. Kf2 {[%clk 00:25:41]} {[%emt 00:04:10]}
e5 {[%clk 00:44:02]} {[%emt 00:01:54]} 26. fxe5 {[%clk 00:24:53]} {[%emt
00:01:18]} f4 {[%clk 00:39:53]} {[%emt 00:04:39]} 27. gxf4 {[%clk 00:23:38]}
{[%emt 00:01:44]} Rxf4+ {[%clk 00:39:59]} {[%emt 00:00:24]} 28. Ke3 {[%clk
00:23:06]} {[%emt 00:01:03]} Rh4 {[%clk 00:35:29]} {[%emt 00:04:59]} 29. Rg1+
{[%clk 00:21:42]} {[%emt 00:01:54]} Kf8 {[%clk 00:31:55]} {[%emt 00:04:05]} 30.
h3 {[%clk 00:16:24]} {[%emt 00:05:47]} Rxe5+ {[%clk 00:29:27]} {[%emt
00:02:58]} 31. Kd3 {[%clk 00:16:52]} {[%emt 00:00:01]} c5 {[%clk 00:19:08]}
{[%emt 00:10:50]} 32. Bg2 {[%clk 00:11:36]} {[%emt 00:05:46]} Ne2 {[%clk
00:07:24]} {[%emt 00:12:14]} 33. Rgf1+ {[%clk 00:07:14]} {[%emt 00:04:52]} Nf4+
{[%clk 00:01:13]} {[%emt 00:06:42]} 34. Kc2 {[%clk 00:07:15]} {[%emt 00:00:28]}
Ke7 {[%clk 00:00:52]} {[%emt 00:00:52]} 35. Rce1 {[%clk 00:03:51]} {[%emt
00:03:53]} d6 {[%clk 00:00:46]} {[%emt 00:00:37]} 36. Ba8 {[%clk 00:02:40]}
{[%emt 00:01:40]} Ng2 {[%clk 00:00:35]} {[%emt 00:00:42]} 37. Bxg2 {[%clk
00:02:27]} {[%emt 00:00:13]} 1-0

[Event "Schack-SM 2022: Sverigemastarklassen"]
[Site "Fyrishov, Idrottsgatan 2, Uppsala, Sweden"]
[Date "2022.07.03"]
[Round "2.4"]
[White "Carlsson, Ludvig"]
[Black "Smith, Axel"]
[Result "1-0"]
[TimeControl "90 minutes for 40 moves + 30 minutes for the rest of the game + 30 seconds per move from move one."]
[WhiteTitle "IM"]
[BlackTitle "GM"]
[WhiteFideId "1727010"]
[BlackFideId "1707930"]
[WhiteElo "2399"]
[BlackElo "2417"]

1. e4 {[%clk 01:30:49]} {[%emt 00:00:09]} e5 {[%clk 01:30:56]} {[%emt
00:00:06]} 2. Nc3 {[%clk 01:31:03]} {[%emt 00:00:15]} Nf6 {[%clk 01:31:21]}
{[%emt 00:00:05]} 3. Nf3 {[%clk 01:31:22]} {[%emt 00:00:11]} Bb4 {[%clk
01:31:06]} {[%emt 00:00:46]} 4. Nxe5 {[%clk 01:31:29]} {[%emt 00:00:22]} O-O
{[%clk 01:31:11]} {[%emt 00:00:25]} 5. Be2 {[%clk 01:29:32]} {[%emt 00:02:26]}
Re8 {[%clk 01:30:43]} {[%emt 00:01:00]} 6. Nd3 {[%clk 01:29:25]} {[%emt
00:00:36]} Bxc3 {[%clk 01:31:10]} {[%emt 00:00:03]} 7. dxc3 {[%clk 01:29:44]}
{[%emt 00:00:10]} Nxe4 {[%clk 01:31:34]} {[%emt 00:00:07]} 8. O-O {[%clk
01:30:00]} {[%emt 00:00:13]} d6 {[%clk 01:31:34]} {[%emt 00:00:32]} 9. Nf4
{[%clk 01:25:12]} {[%emt 00:05:16]} Nd7 {[%clk 01:31:25]} {[%emt 00:00:40]} 10.
Be3 {[%clk 01:10:45]} {[%emt 00:14:56]} Ndf6 {[%clk 01:07:35]} {[%emt
00:24:21]} 11. a4 {[%clk 01:06:07]} {[%emt 00:05:08]} a5 {[%clk 01:06:50]}
{[%emt 00:01:15]} 12. Re1 {[%clk 01:06:17]} {[%emt 00:00:18]} b6 {[%clk
01:04:10]} {[%emt 00:03:13]} 13. Nd5 {[%clk 01:02:41]} {[%emt 00:04:05]} Bb7
{[%clk 00:54:41]} {[%emt 00:10:00]} 14. Nxf6+ {[%clk 00:58:19]} {[%emt
00:04:51]} Nxf6 {[%clk 00:53:29]} {[%emt 00:01:41]} 15. Bb5 {[%clk 00:56:53]}
{[%emt 00:01:57]} c6 {[%clk 00:52:28]} {[%emt 00:01:31]} 16. Bf1 {[%clk
00:53:12]} {[%emt 00:04:10]} Nd5 {[%clk 00:51:21]} {[%emt 00:01:38]} 17. Bd2
{[%clk 00:49:09]} {[%emt 00:04:31]} Rxe1 {[%clk 00:50:37]} {[%emt 00:01:15]} 18.
Qxe1 {[%clk 00:48:57]} {[%emt 00:00:41]} Qd7 {[%clk 00:50:19]} {[%emt
00:00:49]} 19. f3 {[%clk 00:47:01]} {[%emt 00:02:25]} Re8 {[%clk 00:49:30]}
{[%emt 00:01:21]} 20. Qf2 {[%clk 00:44:13]} {[%emt 00:03:17]} c5 {[%clk
00:49:07]} {[%emt 00:00:55]} 21. b3 {[%clk 00:43:55]} {[%emt 00:00:48]} Ne7
{[%clk 00:26:55]} {[%emt 00:22:41]} 22. c4 {[%clk 00:34:31]} {[%emt 00:09:54]}
d5 {[%clk 00:25:50]} {[%emt 00:01:36]} 23. cxd5 {[%clk 00:34:42]} {[%emt
00:00:18]} Nxd5 {[%clk 00:25:33]} {[%emt 00:00:48]} 24. Re1 {[%clk 00:31:58]}
{[%emt 00:03:12]} Rxe1 {[%clk 00:21:55]} {[%emt 00:04:09]} 25. Qxe1 {[%clk
00:32:20]} {[%emt 00:00:08]} Nb4 {[%clk 00:21:00]} {[%emt 00:01:25]} 26. c3
{[%clk 00:32:31]} {[%emt 00:00:19]} Nc6 {[%clk 00:16:50]} {[%emt 00:04:40]} 27.
Bf4 {[%clk 00:31:45]} {[%emt 00:01:15]} Ne7 {[%clk 00:08:29]} {[%emt 00:08:51]}
28. Qe5 {[%clk 00:31:06]} {[%emt 00:01:10]} Nd5 {[%clk 00:08:43]} {[%emt
00:00:17]} 29. Bg3 {[%clk 00:28:46]} {[%emt 00:02:48]} f6 {[%clk 00:06:37]}
{[%emt 00:02:37]} 30. Qb8+ {[%clk 00:26:11]} {[%emt 00:03:05]} Qc8 {[%clk
00:05:52]} {[%emt 00:01:15]} 31. Qd6 {[%clk 00:26:34]} {[%emt 00:00:07]} Qf8
{[%clk 00:03:11]} {[%emt 00:03:11]} 32. c4 {[%clk 00:26:06]} {[%emt 00:00:57]}
Qxd6 {[%clk 00:03:26]} {[%emt 00:00:16]} 33. Bxd6 {[%clk 00:26:34]} {[%emt
00:00:02]} Ne3 {[%clk 00:02:19]} {[%emt 00:01:37]} 34. Bd3 {[%clk 00:25:57]}
{[%emt 00:01:07]} Bc8 {[%clk 00:02:35]} {[%emt 00:00:15]} 35. Bc7 {[%clk
00:24:35]} {[%emt 00:01:51]} Nf5 {[%clk 00:02:45]} {[%emt 00:00:20]} 36. Bc2
{[%clk 00:23:50]} {[%emt 00:01:15]} Ne3 {[%clk 00:01:30]} {[%emt 00:01:45]} 37.
Be4 {[%clk 00:24:18]} {[%emt 00:00:02]} Nf5 {[%clk 00:01:08]} {[%emt 00:00:52]}
38. Bxb6 {[%clk 00:24:17]} {[%emt 00:00:31]} Nd4 {[%clk 00:01:33]} {[%emt
00:00:05]} 39. Bd5+ {[%clk 00:24:41]} {[%emt 00:00:06]} Kh8 {[%clk 00:01:53]}
{[%emt 00:00:10]} 40. Bxa5 {[%clk 00:21:46]} {[%emt 00:03:23]} Nxb3 {[%clk
00:02:08]} {[%emt 00:00:17]} 41. Bc3 {[%clk 00:22:11]} {[%emt 00:00:05]} h5
{[%clk 00:27:19]} {[%emt 00:05:18]} 42. Kf2 {[%clk 00:51:48]} {[%emt 00:00:52]}
Kh7 {[%clk 00:27:15]} {[%emt 00:00:35]} 43. Ke3 {[%clk 00:51:54]} {[%emt
00:00:24]} Kg6 {[%clk 00:27:41]} {[%emt 00:00:04]} 44. Be4+ {[%clk 00:51:58]}
{[%emt 00:00:26]} Kf7 {[%clk 00:26:08]} {[%emt 00:02:03]} 45. Bc2 {[%clk
00:51:26]} {[%emt 00:01:01]} Nc1 {[%clk 00:26:32]} {[%emt 00:00:07]} 46. Bd2
{[%clk 00:51:43]} {[%emt 00:00:13]} Na2 {[%clk 00:26:48]} {[%emt 00:00:15]} 47.
Bb3 {[%clk 00:52:06]} {[%emt 00:00:06]} Nb4 {[%clk 00:26:59]} {[%emt 00:00:21]}
48. Bxb4 {[%clk 00:52:26]} {[%emt 00:00:09]} cxb4 {[%clk 00:27:26]} {[%emt
00:00:03]} 49. c5+ {[%clk 00:52:34]} {[%emt 00:00:22]} Ke7 {[%clk 00:27:38]}
{[%emt 00:00:18]} 50. g3 {[%clk 00:52:33]} {[%emt 00:00:29]} g5 {[%clk
00:27:05]} {[%emt 00:01:04]} 51. h4 {[%clk 00:52:40]} {[%emt 00:00:23]} Kd7
{[%clk 00:25:03]} {[%emt 00:02:32]} 52. Kd4 {[%clk 00:52:57]} {[%emt 00:00:13]}
f5 {[%clk 00:25:00]} {[%emt 00:00:33]} 53. f4 {[%clk 00:53:16]} {[%emt
00:00:12]} gxh4 {[%clk 00:25:02]} {[%emt 00:00:27]} 54. gxh4 {[%clk 00:53:44]}
{[%emt 00:00:02]} Kc6 {[%clk 00:25:15]} {[%emt 00:00:18]} 55. Bd5+ {[%clk
00:53:59]} {[%emt 00:00:15]} 1-0

[Event "Schack-SM 2022: Sverigemastarklassen"]
[Site "Fyrishov, Idrottsgatan 2, Uppsala, Sweden"]
[Date "2022.07.03"]
[Round "2.5"]
[White "Westerberg, Jonathan"]
[Black "Hillarp, Tiger"]
[Result "1/2-1/2"]
[TimeControl "90 minutes for 40 moves + 30 minutes for the rest of the game + 30 seconds per move from move one."]
[WhiteTitle "GM"]
[BlackTitle "GM"]
[WhiteFideId "1701754"]
[BlackFideId "1700812"]
[WhiteElo "2476"]
[BlackElo "2516"]

1. Nc3 {[%clk 01:30:39]} {[%emt 00:00:19]} d5 {[%clk 01:26:50]} {[%emt
00:04:11]} 2. d4 {[%clk 01:30:08]} {[%emt 00:00:59]} Nf6 {[%clk 01:24:58]}
{[%emt 00:02:24]} 3. Bf4 {[%clk 01:29:48]} {[%emt 00:00:47]} a6 {[%clk
01:24:24]} {[%emt 00:01:07]} 4. e3 {[%clk 01:23:20]} {[%emt 00:06:57]} e6
{[%clk 01:19:48]} {[%emt 00:05:06]} 5. a3 {[%clk 01:21:54]} {[%emt 00:01:55]}
c5 {[%clk 01:19:41]} {[%emt 00:00:39]} 6. Nf3 {[%clk 01:20:07]} {[%emt
00:02:17]} b5 {[%clk 01:14:04]} {[%emt 00:06:07]} 7. Bd3 {[%clk 01:12:28]}
{[%emt 00:08:09]} Bb7 {[%clk 01:12:40]} {[%emt 00:01:54]} 8. O-O {[%clk
01:12:30]} {[%emt 00:00:28]} Nbd7 {[%clk 00:50:59]} {[%emt 00:22:11]} 9. Ne5
{[%clk 01:11:53]} {[%emt 00:01:05]} Be7 {[%clk 00:47:37]} {[%emt 00:03:53]} 10.
Qf3 {[%clk 01:06:21]} {[%emt 00:06:01]} O-O {[%clk 00:43:31]} {[%emt 00:04:37]}
11. Qh3 {[%clk 01:04:46]} {[%emt 00:02:05]} c4 {[%clk 00:42:44]} {[%emt
00:01:17]} 12. Nxd7 {[%clk 01:02:02]} {[%emt 00:03:14]} Qxd7 {[%clk 00:43:02]}
{[%emt 00:00:13]} 13. Be2 {[%clk 01:01:29]} {[%emt 00:01:02]} a5 {[%clk
00:41:45]} {[%emt 00:01:47]} 14. a4 {[%clk 00:47:25]} {[%emt 00:14:35]} b4
{[%clk 00:41:43]} {[%emt 00:00:32]} 15. Nd1 {[%clk 00:47:19]} {[%emt 00:00:35]}
Rfc8 {[%clk 00:33:53]} {[%emt 00:08:21]} 16. f3 {[%clk 00:42:25]} {[%emt
00:05:23]} Bc6 {[%clk 00:32:44]} {[%emt 00:01:40]} 17. b3 {[%clk 00:39:26]}
{[%emt 00:03:28]} Bb7 {[%clk 00:33:09]} {[%emt 00:00:06]} 18. Nf2 {[%clk
00:37:18]} {[%emt 00:02:37]} Ba6 {[%clk 00:33:30]} {[%emt 00:00:10]} 19. Rfe1
{[%clk 00:36:07]} {[%emt 00:01:41]} Ne8 {[%clk 00:27:14]} {[%emt 00:06:45]} 20.
Ng4 {[%clk 00:28:19]} {[%emt 00:08:18]} f6 {[%clk 00:26:05]} {[%emt 00:01:39]}
21. Nf2 {[%clk 00:25:15]} {[%emt 00:03:34]} cxb3 {[%clk 00:24:54]} {[%emt
00:01:42]} 22. cxb3 {[%clk 00:25:38]} {[%emt 00:00:07]} Bxe2 {[%clk 00:25:04]}
{[%emt 00:00:20]} 23. Rxe2 {[%clk 00:26:04]} {[%emt 00:00:04]} Rc3 {[%clk
00:25:22]} {[%emt 00:00:11]} 24. Rb1 {[%clk 00:25:37]} {[%emt 00:00:56]} Nd6
{[%clk 00:17:42]} {[%emt 00:08:12]} 25. Nd1 {[%clk 00:24:25]} {[%emt 00:01:42]}
Rc6 {[%clk 00:17:42]} {[%emt 00:00:30]} 26. e4 {[%clk 00:23:28]} {[%emt
00:01:27]} Nf7 {[%clk 00:17:10]} {[%emt 00:01:02]} 27. Ne3 {[%clk 00:21:49]}
{[%emt 00:02:09]} Rd8 {[%clk 00:10:28]} {[%emt 00:07:12]} 28. exd5 {[%clk
00:15:06]} {[%emt 00:07:13]} exd5 {[%clk 00:10:51]} {[%emt 00:00:07]} 29. Qxd7
{[%clk 00:14:30]} {[%emt 00:01:06]} Rxd7 {[%clk 00:11:15]} {[%emt 00:00:06]} 30.
Nxd5 {[%clk 00:11:58]} {[%emt 00:03:02]} Bf8 {[%clk 00:11:39]} {[%emt
00:00:06]} 31. Ne3 {[%clk 00:12:20]} {[%emt 00:00:08]} Rxd4 {[%clk 00:12:02]}
{[%emt 00:00:06]} 32. Bg3 {[%clk 00:12:40]} {[%emt 00:00:11]} g6 {[%clk
00:03:56]} {[%emt 00:08:35]} 33. Nc4 {[%clk 00:11:28]} {[%emt 00:01:42]} Rd5
{[%clk 00:04:05]} {[%emt 00:00:21]} 34. Kf1 {[%clk 00:05:52]} {[%emt 00:06:06]}
Kg7 {[%clk 00:04:16]} {[%emt 00:00:19]} 35. Ke1 {[%clk 00:04:15]} {[%emt
00:02:08]} Nd8 {[%clk 00:02:58]} {[%emt 00:01:48]} 36. Rd1 {[%clk 00:04:12]}
{[%emt 00:00:32]} Rxd1+ {[%clk 00:03:19]} {[%emt 00:00:09]} 37. Kxd1 {[%clk
00:04:40]} {[%emt 00:00:03]} Nb7 {[%clk 00:03:38]} {[%emt 00:00:12]} 38. Bf2
{[%clk 00:02:06]} {[%emt 00:03:03]} Kf7 {[%clk 00:02:36]} {[%emt 00:01:32]} 39.
Rd2 {[%clk 00:02:35]} {[%emt 00:00:01]} Ke6 {[%clk 00:01:21]} {[%emt 00:01:45]}
40. Re2+ {[%clk 00:02:59]} {[%emt 00:00:06]} Kf7 {[%clk 00:01:05]} {[%emt
00:00:46]} 41. Rd2 {[%clk 00:03:25]} {[%emt 00:00:04]} Ke6 {[%clk 00:01:25]}
{[%emt 00:00:11]} 42. Re2+ {[%clk 00:28:58]} {[%emt 00:04:55]} Ke5 {[%clk
00:31:08]} {[%emt 00:00:14]} 1/2-1/2